bitfinex-derivatives/quotes_SOLF0:USTF0_20230830
["timestamp","ask_amount","ask_price","bid_price","bid_amount"]
[1693412712110,103.72,20.776,20.769,103.72]
[1693412715424,20.5548,20.778,20.772,103.72]
[1693412715615,103.72,20.779,20.772,103.72]
[1693412721124,103.72,20.776,20.768,103.72]
[1693412724922,103.72,20.772,20.766,35.8566]
[1693412728527,103.72,20.772,20.766,21.4166]
[1693412728930,103.72,20.772,20.765,103.72]
[1693412729434,103.72,20.766,20.758,103.72]
[1693412729624,103.72,20.763,20.755,103.72]
[1693412730432,103.72,20.763,20.754,0.06]
[1693412730433,103.72,20.762,20.754,103.78]
[1693412731729,103.72,20.762,20.754,103.72]
[1693412731930,103.72,20.76,20.752,103.72]
[1693412732830,103.72,20.76,20.754,0.06]
[1693412735233,103.72,20.76,20.755,14.44]
[1693412735443,103.72,20.763,20.755,118.16]
[1693412736155,103.72,20.762,20.755,14.44]
[1693412736340,103.72,20.759,20.755,14.44]
[1693412737036,103.72,20.759,20.754,0.06]
[1693412738635,103.72,20.759,20.754,0.84491682]
[1693412742040,103.72,20.757,20.754,0.84491682]
[1693412743142,103.72,20.757,20.754,0.06]
[1693412744634,59.467862,20.778,20.745,21.4587]
[1693412744635,103.72,20.755,20.745,21.4587]
[1693412744831,103.72,20.746,20.745,21.4587]
[1693412745035,103.72,20.746,20.737,14.44]
[1693412745245,880.08299759,20.777,20.732,103.72]
[1693412745246,583.0,20.76,20.732,103.72]
[1693412745440,103.72,20.74,20.732,103.72]
[1693412747444,115.62,20.743,20.731,14.44]
[1693412755359,115.62,20.739,20.727,136.4688]
[1693412755549,115.62,20.739,20.728,8.85988436]
[1693412756043,115.62,20.739,20.727,115.62]
[1693412756248,115.62,20.739,20.727,136.6106]
[1693412767359,500.0,20.748,20.727,136.6106]
[1693412767360,104.08,20.736,20.729,104.08]
[1693412768363,104.08,20.736,20.731,0.65674822]
[1693412772069,104.08,20.734,20.731,0.65674822]
[1693412773070,104.08,20.734,20.727,125.0706]
[1693412781781,104.08,20.738,20.731,14.47]
[1693412781979,104.08,20.742,20.735,14.47]
[1693412787682,104.08,20.745,20.739,14.47]
[1693412792384,115.54,20.747,20.735,53.08909353]
[1693412792589,115.54,20.747,20.735,14.47]
[1693412796895,58.09049517,20.757,20.732,115.54]
[1693412796896,115.54,20.745,20.732,115.54]
[1693412806486,115.54,20.745,20.742,0.06]
[1693412810603,19.9418,20.749,20.743,14.46]
[1693412811292,115.54,20.752,20.743,14.46]
[1693412811486,115.54,20.756,20.743,130.0]
[1693412812436,103.9,20.754,20.747,103.9]
[1693412820401,103.9,20.754,20.748,0.75622235]
[1693412820900,103.9,20.756,20.749,103.9]
[1693412828002,0.71586745,20.755,20.749,103.9]
[1693412832406,0.71586745,20.755,20.75,103.9]
[1693412834608,103.9,20.754,20.748,0.75622235]
[1693412836412,103.9,20.75,20.748,0.75622235]
[1693412836614,103.9,20.75,20.743,103.9]
[1693412837619,103.9,20.75,20.743,118.36]
[1693412838319,38.61657032,20.764,20.743,118.36]
[1693412838320,103.9,20.753,20.746,103.9]
[1693412841121,103.9,20.753,20.747,14.46]
[1693412841525,103.9,20.756,20.749,103.9]
[1693412841918,19.7877,20.767,20.75,103.9]
[1693412842120,103.9,20.758,20.75,103.9]
[1693412843424,0.77058113,20.756,20.75,103.9]
[1693412844520,0.77058113,20.756,20.752,0.78163274]
[1693412851432,103.9,20.766,20.755,103.9]
[1693412851622,103.9,20.766,20.758,103.9]
[1693412852027,123.6877,20.767,20.759,103.9]
[1693412852527,103.9,20.767,20.759,103.9]
[1693412854032,103.9,20.767,20.761,0.7722851]
[1693412854625,103.9,20.763,20.756,103.9]
[1693412856435,103.9,20.765,20.757,103.9]
[1693412857122,103.9,20.761,20.754,103.9]
[1693412859032,0.72312581,20.76,20.755,0.67292411]
[1693412861629,0.72312581,20.76,20.748,0.06]
[1693412861835,103.9,20.757,20.749,103.9]
[1693412862029,103.9,20.755,20.748,0.06]
[1693412862231,103.9,20.751,20.748,0.06]
[1693412871937,0.7203758,20.752,20.748,0.06]
[1693412880946,103.9,20.751,20.748,0.06]
[1693412882352,103.9,20.751,20.747,0.7657412]
[1693412887359,0.7203758,20.752,20.747,104.6657412]
[1693412892066,0.7203758,20.752,20.748,103.9]
[1693412897762,104.6203758,20.752,20.747,0.7657412]
[1693412906573,103.9,20.749,20.747,0.7657412]
[1693412917573,0.7203758,20.752,20.748,103.9]
[1693412921978,0.7203758,20.752,20.749,103.9]
[1693412923175,103.9,20.76,20.751,103.9]
[1693412924775,103.9,20.762,20.755,103.9]
[1693412925577,0.74712071,20.758,20.755,103.9]
[1693412932093,0.74712071,20.758,20.753,104.59944488]
[1693412938587,0.74712071,20.758,20.756,103.9]
[1693412939478,103.9,20.764,20.756,103.9]
[1693412939788,113.79816301,20.779,20.759,103.9]
[1693412939995,103.9,20.767,20.759,103.9]
[1693412941992,103.9,20.767,20.761,103.9]
[1693412943027,103.9,20.764,20.758,14.45]
[1693412949596,103.9,20.767,20.761,14.45]
[1693412953790,0.74951786,20.766,20.761,14.45]
[1693412954102,0.74951786,20.766,20.76,103.9]
[1693412954304,0.74951786,20.766,20.759,0.67881699]
[1693412954305,103.9,20.765,20.759,0.67881699]
[1693412962203,0.74951786,20.766,20.759,0.67881699]
[1693412962204,103.9,20.764,20.759,0.67881699]
[1693412968205,103.9,20.764,20.76,14.45]
[1693412968510,103.9,20.764,20.759,0.67881699]
[1693412968708,103.9,20.764,20.76,14.45]
[1693412968908,103.9,20.764,20.759,0.67881699]
[1693412969708,103.9,20.764,20.76,14.45]
[1693412970013,103.9,20.764,20.759,0.67881699]
[1693412970210,103.9,20.764,20.76,14.45]
[1693412970712,103.9,20.764,20.759,0.67881699]
[1693412971305,103.9,20.765,20.759,0.67881699]
[1693412972014,0.74951786,20.766,20.759,104.57881699]
[1693412974912,0.74951786,20.766,20.759,143.96639521]
[1693412979127,103.9,20.764,20.759,0.67881699]
[1693412981924,103.9,20.763,20.759,0.67881699]
[1693412982341,103.9,20.764,20.759,0.67881699]
[1693412989243,104.64951786,20.766,20.759,104.57881699]
[1693413003942,0.74951786,20.766,20.762,103.9]
[1693413004145,0.74951786,20.766,20.759,0.67881699]
[1693413004146,0.74951786,20.766,20.765,103.9]
[1693413004835,103.9,20.772,20.766,14.45]
[1693413007338,103.9,20.772,20.765,103.9]
[1693413010745,103.9,20.77,20.762,103.9]
[1693413010966,103.9,20.764,20.757,103.9]
[1693413012055,103.9,20.762,20.755,103.9]
[1693413013947,103.9,20.758,20.751,103.9]
[1693413017390,103.9,20.755,20.747,103.9]
[1693413017553,500.0,20.766,20.737,19.9517]
[1693413017554,103.9,20.752,20.743,103.9]
[1693413019252,103.9,20.754,20.746,103.9]
[1693413019447,103.9,20.757,20.749,103.9]
[1693413021944,103.9,20.755,20.747,103.9]
[1693413023556,103.9,20.758,20.753,0.23261089]
[1693413027464,59.15014604,20.769,20.753,0.23261089]
[1693413027465,103.9,20.756,20.753,0.23261089]
[1693413029855,103.9,20.754,20.753,0.23261089]
[1693413030361,103.9,20.754,20.749,0.29082182]
[1693413030563,103.9,20.753,20.749,0.29082182]
[1693413031658,103.9,20.754,20.747,103.9]
[1693413032065,103.9,20.752,20.745,103.9]
[1693413032314,115.49,20.754,20.743,53.76635837]
[1693413032463,115.49,20.754,20.743,14.46]
[1693413032953,115.49,20.754,20.742,115.49]
[1693413036263,115.49,20.754,20.753,0.23261086]
[1693413036763,115.49,20.754,20.749,0.29082177]
[1693413040265,115.49,20.757,20.749,0.29082177]
[1693413042065,115.49,20.76,20.749,0.29082177]
[1693413044666,115.49,20.764,20.751,115.49]
[1693413046268,500.0,20.766,20.749,0.29082177]
[1693413046269,115.49,20.761,20.749,0.29082177]
[1693413046863,115.49,20.761,20.755,0.76559523]
[1693413051972,115.49,20.759,20.755,0.76559523]
[1693413057367,103.89,20.756,20.755,0.76559523]
[1693413057973,103.89,20.76,20.755,0.76559523]
[1693413061183,104.63772981,20.76,20.755,0.76559523]
[1693413061675,103.89,20.759,20.755,0.76559523]
[1693413062080,103.89,20.758,20.755,0.76559523]
[1693413064211,103.89,20.756,20.755,0.76559523]
[1693413070387,103.89,20.758,20.755,0.76559523]
[1693413070578,0.74772981,20.76,20.755,0.76559523]
[1693413075795,103.89,20.758,20.755,0.76559523]
[1693413078392,103.89,20.756,20.755,0.76559523]
[1693413081787,103.89,20.758,20.755,0.76559523]
[1693413088304,103.89,20.756,20.753,0.06]
[1693413088495,103.89,20.754,20.744,103.89]
[1693413088696,103.89,20.749,20.741,103.89]
[1693413089794,103.89,20.746,20.739,14.46]
[1693413091590,103.89,20.746,20.74,0.79347039]
[1693413091797,103.89,20.748,20.74,104.68347039]
[1693413091996,103.89,20.747,20.74,0.79347039]
[1693413092389,115.55,20.749,20.74,0.79347039]
[1693413092995,115.55,20.749,20.737,14.46]
[1693413093895,115.55,20.749,20.742,0.76609826]
[1693413094898,115.55,20.746,20.742,0.76609826]
[1693413095090,115.55,20.744,20.732,115.55]
[1693413107706,115.55,20.744,20.742,0.06]
[1693413112011,0.67610634,20.745,20.742,0.06]
[1693413112411,104.02,20.744,20.742,0.06]
[1693413120021,0.67610634,20.745,20.742,0.06]
[1693413121614,0.67610634,20.745,20.741,0.71707144]
[1693413122520,0.67610634,20.745,20.742,0.06]
[1693413131934,104.02,20.744,20.742,0.06]
[1693413137737,0.67610634,20.745,20.742,0.06]
[1693413137738,0.67610634,20.745,20.743,14.47]
[1693413138730,0.67610634,20.745,20.742,0.06]
[1693413143742,0.67610634,20.745,20.743,14.46]
[1693413150352,0.67610634,20.745,20.742,0.06]
[1693413150949,0.67610634,20.745,20.743,14.46]
[1693413151552,0.67610634,20.745,20.741,0.71707144]
[1693413152553,0.67610634,20.745,20.743,14.46]
[1693413154450,104.69610634,20.745,20.742,0.06]
[1693413162061,104.02,20.743,20.742,0.06]
[1693413162761,104.02,20.743,20.741,0.06829014]
[1693413162960,104.02,20.742,20.741,0.06829014]
[1693413163657,104.02,20.742,20.732,104.02]
[1693413163860,104.02,20.735,20.728,104.02]
[1693413164253,104.02,20.732,20.724,104.02]
[1693413167659,0.70364367,20.73,20.724,104.02]
[1693413169667,104.02,20.728,20.72,118.48]
[1693413169871,104.02,20.728,20.72,104.02]
[1693413170067,104.02,20.725,20.718,20.4777]
[1693413170266,104.02,20.725,20.717,143.47998071]
[1693413172170,104.02,20.726,20.718,104.02]
[1693413172875,0.71077193,20.723,20.718,104.02]
[1693413189388,104.02,20.72,20.713,104.02]
[1693413197389,104.02,20.72,20.708,53.52065122]
[1693413197603,104.02,20.718,20.71,104.02]
[1693413199285,104.02,20.713,20.708,14.47]
[1693413199793,104.02,20.713,20.706,14.47]
[1693413200193,104.02,20.711,20.703,104.02]
[1693413204003,104.02,20.711,20.706,14.49]
[1693413204237,0.73064965,20.709,20.706,14.49]
[1693413216510,104.02,20.714,20.706,118.51]
[1693413216913,104.02,20.718,20.71,104.02]
[1693413222013,104.02,20.715,20.708,14.49]
[1693413223718,104.02,20.715,20.707,104.02]
[1693413224017,104.02,20.712,20.704,104.02]
[1693413226214,0.70504495,20.71,20.704,104.02]
[1693413226427,0.70504495,20.71,20.706,0.74542019]
[1693413229016,104.02,20.709,20.706,0.74542019]
[1693413231215,104.02,20.707,20.706,0.74542019]
[1693413239313,104.02,20.707,20.699,0.11660859]
[1693413239512,104.02,20.701,20.699,0.11660859]
[1693413243015,104.02,20.7,20.699,0.11660859]
[1693413254032,71.24,20.701,20.699,0.11660859]
[1693413254219,0.76724461,20.702,20.699,0.11660859]
[1693413254824,104.02,20.704,20.699,0.11660859]
[1693413255331,104.02,20.707,20.699,104.02]
[1693413256434,104.02,20.707,20.702,0.06]
[1693413256627,104.02,20.711,20.703,104.02]
[1693413256831,500.0,20.726,20.706,104.02]
[1693413256832,104.02,20.714,20.706,104.02]
[1693413258528,104.02,20.711,20.703,104.02]
[1693413261924,104.02,20.716,20.708,104.02]
[1693413262331,538.84113953,20.726,20.706,14.48]
[1693413262332,115.86,20.719,20.706,14.48]
[1693413262726,20.2088,20.718,20.706,14.48]
[1693413264036,115.86,20.716,20.703,115.86]
[1693413265228,136.0688,20.718,20.706,14.48]
[1693413266641,115.86,20.715,20.702,115.92]
[1693413271638,115.86,20.715,20.702,115.86]
[1693413272740,115.86,20.715,20.707,0.06]
[1693413273639,136.0688,20.718,20.708,14.48]
[1693413280648,0.71145978,20.715,20.708,14.48]
[1693413282445,0.71145978,20.715,20.709,104.28]
[1693413284147,0.71145978,20.715,20.712,104.28]
[1693413291946,0.71145978,20.715,20.712,14.48]
[1693413295347,0.71145978,20.715,20.712,104.28]
[1693413302454,0.71145978,20.715,20.714,104.28]
[1693413318587,20.2088,20.718,20.714,104.28]
[1693413318788,20.2088,20.718,20.717,104.28]
[1693413319186,104.28,20.724,20.717,104.28]
[1693413319480,20.8996,20.723,20.717,104.28]
[1693413322090,20.8996,20.723,20.718,104.28]
[1693413323391,104.28,20.731,20.722,104.28]
[1693413323580,104.28,20.731,20.724,104.28]
[1693413323782,124.2378,20.735,20.728,104.28]
[1693413324687,19.9578,20.735,20.731,104.28]
[1693413325686,19.9578,20.735,20.734,104.28]
[1693413326086,104.28,20.742,20.735,14.48]
[1693413327887,104.28,20.742,20.734,104.28]
[1693413330399,20.1378,20.744,20.737,104.28]
[1693413331011,20.1378,20.744,20.743,104.28]
[1693413332310,20.1378,20.744,20.74,115.52]
[1693413334599,20.1378,20.744,20.743,115.52]
[1693413334996,20.1378,20.744,20.741,115.52]
[1693413335406,20.1378,20.744,20.741,85.9738]
[1693413335904,20.1378,20.744,20.741,70.2701]
[1693413336319,153.28169802,20.753,20.741,43.4545]
[1693413336517,7.41264305,20.752,20.732,462.08]
[1693413336800,615.52,20.746,20.734,115.52]
[1693413341710,21.506,20.745,20.734,115.52]
[1693413344610,115.52,20.743,20.731,115.52]
[1693413345112,115.52,20.74,20.727,115.52]
[1693413346108,500.0,20.736,20.727,115.52]
[1693413346312,500.0,20.736,20.721,115.52]
[1693413346519,115.52,20.733,20.721,115.52]
[1693413353316,154.45873613,20.733,20.721,115.52]
[1693413364633,115.52,20.729,20.717,14.48]
[1693413364830,115.52,20.729,20.724,0.29117138]
[1693413368230,115.52,20.732,20.724,0.29117138]
[1693413371736,115.52,20.734,20.724,0.29117138]
[1693413377234,20.5885,20.735,20.724,0.29117138]
[1693413377440,104.14,20.729,20.724,0.29117138]
[1693413381637,20.5885,20.735,20.724,0.29117138]
[1693413381638,104.14,20.726,20.724,0.29117138]
[1693413387947,104.14,20.725,20.724,1e-08]
[1693413389946,104.14,20.725,20.72,0.1620777]
[1693413390174,104.14,20.721,20.716,0.40780319]
[1693413390358,104.14,20.717,20.716,0.40780319]
[1693413391571,104.14,20.717,20.709,104.14]
[1693413392051,104.14,20.715,20.708,14.47]
[1693413392755,104.14,20.717,20.709,104.14]
[1693413397457,104.14,20.714,20.708,37.84555984]
[1693413397653,104.14,20.714,20.706,104.14]
[1693413398756,0.69976123,20.713,20.706,104.14]
[1693413399259,0.69976123,20.713,20.706,142.68756155]
[1693413399955,0.69976123,20.713,20.706,104.14]
[1693413400755,0.69976123,20.713,20.706,118.61]
[1693413401256,0.69976123,20.713,20.706,104.14]
[1693413401949,104.14,20.712,20.704,104.14]
[1693413402153,104.14,20.71,20.702,104.14]
[1693413406454,0.66607998,20.708,20.702,104.14]
[1693413406650,0.66607998,20.708,20.699,38.22308063]
[1693413406651,104.14,20.707,20.699,104.14]
[1693413406951,104.14,20.704,20.696,14.47]
[1693413408656,104.14,20.706,20.699,14.47]
[1693413411957,104.14,20.705,20.697,104.14]
[1693413413963,104.14,20.703,20.694,104.14]
[1693413414156,104.84058992,20.703,20.699,0.73283419]
[1693413422178,104.84058992,20.703,20.688,36.0862]
[1693413422179,104.14,20.7,20.69,14.49]
[1693413422369,104.14,20.697,20.69,14.49]
[1693413422861,104.14,20.691,20.682,104.14]
[1693413424160,0.77218032,20.689,20.684,0.71467962]
[1693413429475,19.866,20.704,20.686,116.15]
[1693413429476,116.15,20.698,20.686,116.15]
[1693413431270,116.15,20.698,20.69,0.68450437]
[1693413432271,116.15,20.693,20.69,0.68450437]
[1693413432677,464.6,20.689,20.678,0.11672667]
[1693413432875,116.15,20.684,20.678,0.11672667]
[1693413433471,116.15,20.686,20.678,0.11672667]
[1693413433875,116.15,20.689,20.678,0.11672667]
[1693413435376,116.15,20.689,20.677,14.49]
[1693413439574,21.0956,20.688,20.677,14.49]
[1693413447290,116.15,20.686,20.674,14.5]
[1693413447985,116.15,20.682,20.67,116.15]
[1693413449181,116.15,20.682,20.664,59.56312416]
[1693413449395,500.0,20.687,20.664,59.56312416]
[1693413449396,116.15,20.679,20.666,130.65]
[1693413449584,116.15,20.679,20.668,14.5]
[1693413449784,116.15,20.679,20.666,116.15]
[1693413450028,116.15,20.675,20.668,14.5]
[1693413450293,116.15,20.675,20.663,14.5]
[1693413450480,116.15,20.675,20.664,8.88584209]
[1693413450883,116.15,20.675,20.663,14.5]
[1693413452994,116.15,20.675,20.664,8.88611521]
[1693413453291,116.15,20.675,20.666,14.5]
[1693413453492,116.15,20.675,20.663,14.5]
[1693413453798,116.15,20.675,20.664,8.88606604]
[1693413456601,116.15,20.672,20.664,8.88606604]
[1693413457101,116.9062139,20.672,20.668,14.5]
[1693413457892,116.9062139,20.672,20.667,0.72748488]
[1693413458898,116.9062139,20.672,20.662,4.5]
[1693413458899,116.15,20.669,20.662,4.5]
[1693413459104,116.15,20.665,20.662,4.5]
[1693413460709,116.15,20.663,20.65,116.15]
[1693413460904,116.15,20.663,20.652,14.5]
[1693413461105,116.15,20.663,20.653,8.89085248]
[1693413461403,116.15,20.663,20.654,8.89085248]
[1693413461598,116.15,20.659,20.649,39.58994196]
[1693413461805,116.15,20.659,20.65,8.89158608]
[1693413462004,116.15,20.659,20.652,14.5]
[1693413462204,116.15,20.659,20.653,8.89158608]
[1693413462400,116.15,20.654,20.638,130.65]
[1693413462611,116.15,20.654,20.64,14.5]
[1693413462809,116.15,20.654,20.642,14.5]
[1693413463106,116.15,20.654,20.652,0.73391744]
[1693413463410,116.15,20.653,20.652,0.73391744]
[1693413464107,116.15,20.653,20.642,14.5]
[1693413464312,116.15,20.653,20.643,8.8939406]
[1693413465303,116.15,20.657,20.645,116.15]
[1693413465525,116.15,20.657,20.648,14.5]
[1693413465706,116.15,20.661,20.649,8.8939406]
[1693413466908,0.73910814,20.657,20.65,0.71849143]
[1693413467814,0.73910814,20.657,20.652,14.5]
[1693413468016,0.73910814,20.657,20.653,8.89269795]
[1693413468410,0.73910814,20.657,20.652,14.5]
[1693413470015,0.73910814,20.657,20.65,0.71849143]
[1693413470209,0.73910814,20.657,20.652,14.5]
[1693413470518,116.15,20.656,20.65,0.71849143]
[1693413470721,0.73910814,20.657,20.65,0.71849143]
[1693413471720,116.15,20.651,20.65,0.71849143]
[1693413471930,116.15,20.651,20.638,14.52]
[1693413472196,0.73910814,20.657,20.637,4.5]
[1693413472197,116.15,20.654,20.64,14.52]
[1693413472670,116.15,20.654,20.638,14.52]
[1693413472671,116.15,20.645,20.638,14.52]
[1693413472831,116.15,20.645,20.64,14.52]
[1693413473022,116.15,20.645,20.638,14.52]
[1693413473222,116.15,20.645,20.637,44.12070632]
[1693413473223,5.7,20.644,20.637,4.5]
[1693413473434,5.7,20.636,20.625,14.5185]
[1693413473617,116.15,20.645,20.631,14.5185]
[1693413473618,116.15,20.634,20.631,14.5185]
[1693413473817,116.15,20.637,20.636,14.5185]
[1693413474024,116.15,20.637,20.627,14.5185]
[1693413474218,116.15,20.637,20.634,14.5185]
[1693413474428,116.15,20.637,20.633,14.5185]
[1693413474727,116.15,20.637,20.636,14.5185]
[1693413474917,5.7,20.653,20.637,14.5185]
[1693413475118,116.15,20.647,20.638,8.89816162]
[1693413475319,116.15,20.647,20.638,14.5185]
[1693413475522,116.15,20.647,20.635,14.5185]
[1693413475728,116.15,20.649,20.638,14.5185]
[1693413475941,116.15,20.649,20.64,14.5185]
[1693413476126,116.15,20.649,20.642,14.5185]
[1693413476434,116.15,20.649,20.643,8.89556255]
[1693413476628,116.15,20.649,20.64,14.5185]
[1693413476823,116.15,20.649,20.639,8.89556255]
[1693413476824,116.15,20.649,20.642,14.5185]
[1693413477029,116.15,20.649,20.643,8.89549952]
[1693413477227,213.8,20.65,20.638,14.5185]
[1693413477432,213.8,20.65,20.64,14.5185]
[1693413477627,213.8,20.65,20.642,14.5185]
[1693413477822,213.8,20.65,20.643,8.89543426]
[1693413478126,213.8,20.65,20.638,14.5185]
[1693413478332,855.2,20.654,20.61,66.693005]
[1693413478333,213.8,20.654,20.64,14.5185]
[1693413478534,213.8,20.654,20.642,14.5185]
[1693413478782,5.7,20.653,20.643,8.89527284]
[1693413478929,213.8,20.646,20.64,14.5185]
[1693413479139,213.8,20.646,20.642,14.5185]
[1693413479331,213.8,20.646,20.638,14.5185]
[1693413479525,213.8,20.646,20.637,20.3222]
[1693413479526,213.8,20.646,20.64,14.5185]
[1693413479725,213.8,20.646,20.636,14.5185]
[1693413479929,213.8,20.646,20.638,14.5185]
[1693413480127,213.8,20.641,20.639,8.89746838]
[1693413480329,213.8,20.641,20.632,14.5185]
[1693413480626,213.8,20.641,20.634,14.5185]
[1693413480827,213.8,20.641,20.636,14.5185]
[1693413481033,213.8,20.641,20.63,14.5185]
[1693413481336,213.8,20.641,20.632,14.5185]
[1693413481534,213.8,20.647,20.636,14.5185]
[1693413481732,213.8,20.651,20.638,14.5185]
[1693413482028,213.8,20.656,20.642,213.8]
[1693413482230,213.8,20.656,20.643,8.89829021]
[1693413483134,5.7,20.655,20.643,8.89829021]
[1693413483942,213.8,20.656,20.643,8.89829021]
[1693413484729,213.8,20.659,20.645,213.8]
[1693413485032,234.4384,20.662,20.648,213.8]
[1693413485232,234.4384,20.662,20.649,8.89829021]
[1693413485437,213.8,20.665,20.652,14.5185]
[1693413485626,855.2,20.68,20.645,999.7]
[1693413485627,213.8,20.669,20.655,213.8]
[1693413485842,213.8,20.672,20.659,14.5185]
[1693413486031,5.7,20.674,20.661,213.8]
[1693413487243,213.8,20.672,20.655,213.8]
[1693413487451,5.7,20.667,20.656,8.89113028]
[1693413487631,5.7,20.667,20.655,213.8]
[1693413488836,5.7,20.667,20.649,37.75241778]
[1693413488837,213.8,20.666,20.652,213.8]
[1693413489031,213.8,20.662,20.648,213.8]
[1693413489235,213.8,20.662,20.649,8.89188762]
[1693413490543,235.0946,20.665,20.652,14.5185]
[1693413491232,235.0946,20.665,20.643,21.8102]
[1693413491483,213.8,20.662,20.648,213.8]
[1693413491940,713.8,20.662,20.648,213.8]
[1693413492548,213.8,20.662,20.648,213.8]
[1693413494351,235.0946,20.665,20.652,14.5185]
[1693413494548,213.8,20.665,20.652,14.5185]
[1693413494842,20.0998,20.664,20.652,14.5185]
[1693413495050,213.8,20.668,20.654,213.8]
[1693413495638,5.7,20.667,20.654,213.8]
[1693413496539,213.8,20.668,20.654,213.8]
[1693413496946,213.8,20.665,20.652,14.5185]
[1693413497341,213.8,20.661,20.648,14.5185]
[1693413498152,0.06116937,20.655,20.648,14.5185]
[1693413499052,0.06116937,20.655,20.65,213.8]
[1693413500559,0.06116937,20.655,20.648,213.8]
[1693413501956,5.76116937,20.655,20.642,213.8]
[1693413503055,0.06116937,20.655,20.643,8.89492863]
[1693413503257,0.06116937,20.655,20.649,213.8]
[1693413507064,0.06116937,20.655,20.652,14.5285]
[1693413508466,0.06116937,20.655,20.649,213.8]
[1693413523778,213.8,20.666,20.652,213.8]
[1693413525974,213.8,20.669,20.655,213.8]
[1693413527532,713.8,20.672,20.659,14.5285]
[1693413527770,5.7,20.675,20.647,183.82656022]
[1693413527771,5.7,20.675,20.663,213.8]
[1693413528173,213.8,20.677,20.664,19.9471]
[1693413528567,213.8,20.677,20.663,213.8]
[1693413529077,213.8,20.674,20.66,213.8]
[1693413529377,855.2,20.68,20.655,0.06]
[1693413529378,213.8,20.667,20.655,0.06]
[1693413529876,20.004,20.666,20.655,0.06]
[1693413538483,213.8,20.665,20.655,0.06]
[1693413540295,20.004,20.666,20.643,213.8]
[1693413540296,213.8,20.657,20.643,213.8]
[1693413540985,213.8,20.657,20.645,14.5185]
[1693413541178,213.8,20.657,20.643,213.8]
[1693413541511,213.8,20.657,20.645,14.5185]
[1693413541679,213.8,20.657,20.643,213.8]
[1693413541879,213.8,20.657,20.645,14.5185]
[1693413542079,213.8,20.657,20.638,20.8415]
[1693413542080,213.8,20.659,20.646,213.8]
[1693413542580,213.8,20.662,20.655,0.06]
[1693413542781,20.004,20.666,20.655,0.06]
[1693413542782,233.804,20.666,20.655,0.06]
[1693413543639,20.004,20.666,20.655,213.86]
[1693413544386,213.8,20.669,20.655,213.86]
[1693413545986,213.8,20.675,20.661,213.8]
[1693413546583,5.7,20.677,20.666,14.5185]
[1693413547387,213.8,20.682,20.668,213.8]
[1693413549589,213.8,20.685,20.671,213.8]